fUSD/lending_fUSD_20260611
["ID","MTS","AMOUNT","RATE_DAILY","PERIOD"]
[424761262,1781131858000,-150.0,0.00032466,7]
[424761316,1781131859000,-500.0,0.00032709,2]
[424761318,1781131859000,-500.0,0.00032709,2]
[424761317,1781131859000,-500.0,0.00032709,2]
[424761313,1781131859000,-500.0,0.00032709,2]
[424761312,1781131859000,-500.0,0.00032709,2]
[424761311,1781131859000,-500.0,0.00032709,2]
[424761319,1781131859000,-500.0,0.00032709,2]
[424761314,1781131859000,-500.0,0.00032709,2]
[424761310,1781131859000,-500.0,0.00032709,2]
[424761315,1781131859000,-500.0,0.00032709,2]
[424761328,1781131859000,-500.0,0.00032709,2]
[424761322,1781131859000,-500.0,0.00032709,2]
[424761320,1781131859000,-500.0,0.00032709,2]
[424761324,1781131859000,-500.0,0.00032709,2]
[424761326,1781131859000,-500.0,0.00032709,2]
[424761327,1781131859000,-500.0,0.00032709,2]
[424761323,1781131859000,-500.0,0.00032709,2]
[424761325,1781131859000,-500.0,0.00032709,2]
[424761329,1781131859000,-500.0,0.00032709,2]
[424761331,1781131859000,-500.0,0.00032709,2]
[424761309,1781131859000,-444.0,0.00032709,2]
[424761330,1781131859000,-500.0,0.00032709,2]
[424761321,1781131859000,-500.0,0.00032709,2]
[424761307,1781131859000,-172.27842221,0.00032699,2]
[424761294,1781131859000,-281.07966398,0.00032611,7]
[424761308,1781131859000,-200.0,0.000327,30]
[424761333,1781131859000,-500.0,0.00032709,2]
[424761289,1781131859000,-350.0,0.00032602,7]
[424761283,1781131859000,-587.07,0.000326,120]
[424761286,1781131859000,-878.18,0.000326,120]
[424761287,1781131859000,-1462.58,0.000326,120]
[424761288,1781131859000,-306.39,0.000326,120]
[424761285,1781131859000,-2615.92,0.000326,120]
[424761284,1781131859000,-1112.83,0.000326,120]
[424761290,1781131859000,-150.0,0.00032602,2]
[424761292,1781131859000,-444.0,0.00032606,2]
[424761293,1781131859000,-150.0,0.0003261,7]
[424761296,1781131859000,-350.0,0.00032617,6]
[424761291,1781131859000,-150.0,0.00032603,7]
[424761298,1781131859000,-402.23,0.00032643,2]
[424761299,1781131859000,-281.07966398,0.00032644,7]
[424761295,1781131859000,-150.0,0.00032612,7]
[424761297,1781131859000,-408.0,0.00032622,2]
[424761300,1781131859000,-150.0,0.00032653,7]
[424761303,1781131859000,-150.0,0.00032665,7]
[424761302,1781131859000,-150.0,0.00032662,7]
[424761305,1781131859000,-281.07966398,0.00032677,7]
[424761301,1781131859000,-444.0,0.00032653,2]
[424761304,1781131859000,-444.0,0.00032666,2]
[424761306,1781131859000,-150.0,0.00032699,7]
[424761332,1781131859000,-500.0,0.00032709,2]
[424761378,1781131859000,-150.0,0.00032824,7]
[424761335,1781131859000,-500.0,0.00032709,2]
[424761363,1781131859000,-281.07966398,0.00032744,7]
[424761364,1781131859000,-2000.0,0.00032748,10]
[424761366,1781131859000,-166.0,0.0003276,60]
[424761369,1781131859000,-150.0,0.00032771,7]
[424761367,1781131859000,-444.0,0.0003277,2]
[424761368,1781131859000,-500.0,0.0003277,2]
[424761365,1781131859000,-250.114995,0.00032748,30]
[424761370,1781131859000,-408.0,0.00032771,2]
[424761371,1781131859000,-1594.25001446,0.00032777,2]
[424761372,1781131859000,-281.07966398,0.00032777,7]
[424761362,1781131859000,-426.0,0.00032737,2]
[424761374,1781131859000,-1524.980926,0.000328,10]
[424761376,1781131859000,-150.0,0.00032805,7]
[424761380,1781131859000,-220.0,0.00032836,3]
[424761379,1781131859000,-700.0,0.00032829,5]
[424761382,1781131859000,-281.07966398,0.00032844,7]
[424761381,1781131859000,-498.0,0.00032837,2]
[424761375,1781131859000,-150.0,0.00032802,7]
[424761383,1781131859000,-444.0,0.0003285,2]
[424761385,1781131859000,-202.0,0.0003286,30]
[424761334,1781131859000,-500.0,0.00032709,2]
[424761384,1781131859000,-444.0,0.00032852,2]
[424761377,1781131859000,-281.07966398,0.0003281,7]
[424761361,1781131859000,-150.0,0.00032734,7]
[424761373,1781131859000,-150.0,0.00032788,7]
[424761353,1781131859000,-500.0,0.00032709,2]
[424761337,1781131859000,-500.0,0.00032709,2]
[424761357,1781131859000,-281.07966398,0.00032711,7]
[424761338,1781131859000,-500.0,0.00032709,2]
[424761336,1781131859000,-500.0,0.00032709,2]
[424761341,1781131859000,-500.0,0.00032709,2]
[424761342,1781131859000,-500.0,0.00032709,2]
[424761339,1781131859000,-500.0,0.00032709,2]
[424761343,1781131859000,-500.0,0.00032709,2]
[424761344,1781131859000,-500.0,0.00032709,2]
[424761345,1781131859000,-500.0,0.00032709,2]
[424761346,1781131859000,-500.0,0.00032709,2]
[424761348,1781131859000,-500.0,0.00032709,2]
[424761340,1781131859000,-500.0,0.00032709,2]
[424761355,1781131859000,-527.0,0.00032709,2]
[424761349,1781131859000,-500.0,0.00032709,2]
[424761351,1781131859000,-500.0,0.00032709,2]
[424761359,1781131859000,-150.0,0.00032718,7]
[424761360,1781131859000,-150.0,0.00032727,7]
[424761350,1781131859000,-500.0,0.00032709,2]
[424761352,1781131859000,-500.0,0.00032709,2]
[424761356,1781131859000,-408.0,0.0003271,2]
[424761358,1781131859000,-408.0,0.00032714,2]
[424761347,1781131859000,-500.0,0.00032709,2]
[424761354,1781131859000,-500.0,0.00032709,2]
[424761423,1781131860000,-314.85092,0.00032877,7]
[424761418,1781131860000,-215.213697,0.00032877,7]
[424761422,1781131860000,-314.85092,0.00032877,7]
[424761419,1781131860000,-215.213697,0.00032877,7]
[424761414,1781131860000,-2564.22821909,0.00032876,7]
[424761416,1781131860000,-277.432391,0.00032877,2]
[424761420,1781131860000,-215.213697,0.00032877,7]
[424761417,1781131860000,-215.213697,0.00032877,7]
[424761424,1781131860000,-314.85092,0.00032877,7]
[424761421,1781131860000,-314.85092,0.00032877,7]
[424761425,1781131860000,-500.0,0.00032877,7]
[424761434,1781131860000,-500.0,0.00032877,7]
[424761428,1781131860000,-500.0,0.00032877,7]
[424761427,1781131860000,-500.0,0.00032877,7]
[424761429,1781131860000,-165.006921,0.00032877,7]
[424761435,1781131860000,-165.006921,0.00032877,7]
[424761431,1781131860000,-151.0,0.00032877,7]
[424761430,1781131860000,-165.006921,0.00032877,7]
[424761433,1781131860000,-151.0,0.00032877,7]
[424761436,1781131860000,-500.0,0.00032877,7]
[424761432,1781131860000,-165.006921,0.00032877,7]
[424761437,1781131860000,-500.0,0.00032877,7]
[424761412,1781131860000,-2564.14,0.00032876,7]
[424761426,1781131860000,-500.0,0.00032877,7]
[424761413,1781131860000,-2564.14,0.00032876,7]
[424761390,1781131860000,-151.0,0.00032874,14]
[424761408,1781131860000,-2564.14,0.00032876,7]
[424761439,1781131860000,-151.0,0.00032877,7]
[424761386,1781131860000,-444.0,0.00032864,2]
[424761387,1781131860000,-700.0,0.0003287,2]
[424761389,1781131860000,-153.80113636,0.00032873,2]
[424761388,1781131860000,-700.0,0.0003287,2]
[424761393,1781131860000,-3377.03,0.00032876,2]
[424761392,1781131860000,-151.0,0.00032874,14]
[424761391,1781131860000,-151.0,0.00032874,14]
[424761403,1781131860000,-568.14,0.00032876,2]
[424761395,1781131860000,-3377.03,0.00032876,2]
[424761404,1781131860000,-568.14,0.00032876,2]
[424761411,1781131860000,-2564.14,0.00032876,7]
[424761396,1781131860000,-551.34,0.00032876,120]
[424761397,1781131860000,-551.34,0.00032876,120]
[424761398,1781131860000,-551.34,0.00032876,120]
[424761400,1781131860000,-500.0,0.00032876,120]
[424761399,1781131860000,-500.0,0.00032876,120]
[424761401,1781131860000,-500.0,0.00032876,120]
[424761402,1781131860000,-568.14,0.00032876,2]
[424761405,1781131860000,-500.0,0.00032876,120]
[424761409,1781131860000,-2564.14,0.00032876,7]
[424761407,1781131860000,-500.0,0.00032876,120]
[424761410,1781131860000,-2564.14,0.00032876,7]
[424761406,1781131860000,-500.0,0.00032876,120]
[424761394,1781131860000,-3377.03,0.00032876,2]
[424761440,1781131860000,-151.0,0.00032877,7]
[424761415,1781131860000,-18162.82186738,0.00032876,31]
[424761441,1781131860000,-151.0,0.00032877,7]
[424761469,1781131860000,-158.464886,0.00032877,7]
[424761471,1781131860000,-151.0,0.00032877,7]
[424761478,1781131860000,-158.464886,0.00032877,7]
[424761474,1781131860000,-158.464886,0.00032877,7]
[424761475,1781131860000,-151.0,0.00032877,7]
[424761473,1781131860000,-158.464886,0.00032877,7]
[424761476,1781131860000,-151.0,0.00032877,7]
[424761472,1781131860000,-151.0,0.00032877,7]
[424761479,1781131860000,-151.0,0.00032877,7]
[424761477,1781131860000,-158.464886,0.00032877,7]
[424761480,1781131860000,-151.0,0.00032877,7]
[424761468,1781131860000,-151.0,0.00032877,7]
[424761482,1781131860000,-158.464886,0.00032877,7]
[424761490,1781131860000,-151.0,0.00032877,7]
[424761484,1781131860000,-151.0,0.00032877,7]
[424761485,1781131860000,-151.0,0.00032877,7]
[424761486,1781131860000,-151.0,0.00032877,7]
[424761483,1781131860000,-151.0,0.00032877,7]
[424761491,1781131860000,-151.0,0.00032877,7]
[424761492,1781131860000,-151.0,0.00032877,7]
[424761487,1781131860000,-151.0,0.00032877,7]
[424761488,1781131860000,-151.0,0.00032877,7]
[424761493,1781131860000,-151.0,0.00032877,7]
[424761443,1781131860000,-151.0,0.00032877,7]
[424761489,1781131860000,-151.0,0.00032877,7]
[424761465,1781131860000,-151.0,0.00032877,7]
[424761481,1781131860000,-158.464886,0.00032877,7]
[424761464,1781131860000,-296.281006,0.00032877,7]
[424761466,1781131860000,-296.281006,0.00032877,7]
[424761438,1781131860000,-500.0,0.00032877,7]
[424761446,1781131860000,-151.0,0.00032877,7]
[424761442,1781131860000,-151.0,0.00032877,7]
[424761445,1781131860000,-151.0,0.00032877,7]
[424761444,1781131860000,-151.0,0.00032877,7]
[424761447,1781131860000,-151.0,0.00032877,7]
[424761448,1781131860000,-151.0,0.00032877,7]
[424761450,1781131860000,-151.0,0.00032877,7]
[424761454,1781131860000,-296.281006,0.00032877,7]
[424761452,1781131860000,-151.0,0.00032877,7]
[424761456,1781131860000,-296.281006,0.00032877,7]
[424761453,1781131860000,-151.0,0.00032877,7]
[424761463,1781131860000,-151.0,0.00032877,7]
[424761470,1781131860000,-158.464886,0.00032877,7]
[424761458,1781131860000,-296.281006,0.00032877,7]
[424761461,1781131860000,-151.0,0.00032877,7]
[424761467,1781131860000,-151.0,0.00032877,7]
[424761460,1781131860000,-296.281006,0.00032877,7]
[424761462,1781131860000,-296.281006,0.00032877,7]
[424761455,1781131860000,-151.0,0.00032877,7]
[424761457,1781131860000,-296.281006,0.00032877,7]
[424761449,1781131860000,-151.0,0.00032877,7]
[424761451,1781131860000,-151.0,0.00032877,7]
[424761459,1781131860000,-151.0,0.00032877,7]
[424761528,1781131861000,-151.0,0.00032877,7]
[424761538,1781131861000,-151.0,0.00032877,7]
[424761531,1781131861000,-151.0,0.00032877,7]
[424761530,1781131861000,-151.0,0.00032877,7]
[424761539,1781131861000,-151.0,0.00032877,7]
[424761526,1781131861000,-151.0,0.00032877,7]
[424761522,1781131861000,-166.176356,0.00032877,7]
[424761524,1781131861000,-151.0,0.00032877,7]
[424761525,1781131861000,-151.0,0.00032877,7]
[424761535,1781131861000,-151.0,0.00032877,7]
[424761529,1781131861000,-151.0,0.00032877,7]
[424761533,1781131861000,-151.0,0.00032877,7]
[424761547,1781131861000,-856.679828,0.00032877,7]
[424761536,1781131861000,-151.0,0.00032877,7]
[424761534,1781131861000,-151.0,0.00032877,7]
[424761537,1781131861000,-151.0,0.00032877,7]
[424761540,1781131861000,-151.0,0.00032877,7]
[424761541,1781131861000,-151.0,0.00032877,7]
[424761542,1781131861000,-273.501538,0.00032877,7]
[424761543,1781131861000,-639.18274692,0.00032877,2]
[424761544,1781131861000,-856.679828,0.00032877,7]
[424761549,1781131861000,-856.679828,0.00032877,7]
[424761545,1781131861000,-856.679828,0.00032877,7]
[424761548,1781131861000,-856.679828,0.00032877,7]
[424761523,1781131861000,-151.0,0.00032877,7]
[424761532,1781131861000,-151.0,0.00032877,7]
[424761527,1781131861000,-151.0,0.00032877,7]
[424761494,1781131861000,-151.0,0.00032877,7]
[424761520,1781131861000,-151.0,0.00032877,7]
[424761495,1781131861000,-151.0,0.00032877,7]
[424761546,1781131861000,-856.679828,0.00032877,7]
[424761500,1781131861000,-151.0,0.00032877,7]
[424761502,1781131861000,-151.0,0.00032877,7]
[424761498,1781131861000,-151.0,0.00032877,7]
[424761497,1781131861000,-151.0,0.00032877,7]
[424761499,1781131861000,-151.0,0.00032877,7]
[424761496,1781131861000,-151.0,0.00032877,7]
[424761503,1781131861000,-151.0,0.00032877,7]
[424761501,1781131861000,-199.476403,0.00032877,7]
[424761504,1781131861000,-151.0,0.00032877,7]
[424761506,1781131861000,-151.0,0.00032877,7]
[424761521,1781131861000,-151.0,0.00032877,7]
[424761515,1781131861000,-151.0,0.00032877,7]
[424761507,1781131861000,-151.0,0.00032877,7]
[424761508,1781131861000,-151.0,0.00032877,7]
[424761505,1781131861000,-151.0,0.00032877,7]
[424761511,1781131861000,-151.0,0.00032877,7]
[424761509,1781131861000,-151.0,0.00032877,7]
[424761510,1781131861000,-151.0,0.00032877,7]
[424761513,1781131861000,-151.0,0.00032877,7]
[424761512,1781131861000,-151.0,0.00032877,7]
[424761514,1781131861000,-151.0,0.00032877,7]
[424761517,1781131861000,-151.0,0.00032877,7]
[424761518,1781131861000,-151.0,0.00032877,7]
[424761519,1781131861000,-151.0,0.00032877,7]
[424761516,1781131861000,-151.0,0.00032877,7]
[424761550,1781131861000,-856.679828,0.00032877,7]
[424761576,1781131861000,-1968.558961,0.00032877,7]
[424761560,1781131861000,-781.550906,0.00032877,7]
[424761586,1781131861000,-934.909735,0.00032877,7]
[424761580,1781131861000,-151.0,0.00032877,7]
[424761582,1781131861000,-151.0,0.00032877,7]
[424761584,1781131861000,-151.0,0.00032877,7]
[424761585,1781131861000,-268.609054,0.00032877,7]
[424761588,1781131861000,-1968.558961,0.00032877,7]
[424761590,1781131861000,-1968.558961,0.00032877,7]
[424761594,1781131861000,-1968.558961,0.00032877,7]
[424761598,1781131861000,-151.0,0.00032877,7]
[424761591,1781131861000,-934.909735,0.00032877,7]
[424761593,1781131861000,-268.609054,0.00032877,7]
[424761592,1781131861000,-151.0,0.00032877,7]
[424761583,1781131861000,-268.609054,0.00032877,7]
[424761597,1781131861000,-268.609054,0.00032877,7]
[424761600,1781131861000,-934.909735,0.00032877,7]
[424761596,1781131861000,-243.578991,0.00032877,7]
[424761589,1781131861000,-934.909735,0.00032877,7]
[424761595,1781131861000,-151.0,0.00032877,7]
[424761602,1781131861000,-1968.558961,0.00032877,7]
[424761601,1781131861000,-151.0,0.00032877,7]
[424761603,1781131861000,-151.471584,0.00032877,7]
[424761606,1781131861000,-1968.558961,0.00032877,7]
[424761607,1781131861000,-934.909735,0.00032877,7]
[424761604,1781131861000,-934.909735,0.00032877,7]
[424761605,1781131861000,-151.0,0.00032877,7]
[424761608,1781131861000,-930.6499001,0.00032877,7]
[424761599,1781131861000,-268.609054,0.00032877,7]
[424761552,1781131861000,-856.679828,0.00032877,7]
[424761578,1781131861000,-934.909735,0.00032877,7]
[424761579,1781131861000,-934.909735,0.00032877,7]
[424761551,1781131861000,-856.679828,0.00032877,7]
[424761561,1781131861000,-781.550906,0.00032877,7]
[424761562,1781131861000,-781.550906,0.00032877,7]
[424761556,1781131861000,-151.0,0.00032877,7]
[424761555,1781131861000,-856.679828,0.00032877,7]
[424761553,1781131861000,-856.679828,0.00032877,7]
[424761554,1781131861000,-856.679828,0.00032877,7]
[424761559,1781131861000,-781.550906,0.00032877,7]
[424761557,1781131861000,-151.0,0.00032877,7]
[424761558,1781131861000,-175.717429,0.00032877,7]
[424761564,1781131861000,-781.550906,0.00032877,7]
[424761563,1781131861000,-781.550906,0.00032877,7]
[424761581,1781131861000,-268.609054,0.00032877,7]
[424761566,1781131861000,-781.550906,0.00032877,7]
[424761575,1781131861000,-1968.558961,0.00032877,7]
[424761571,1781131861000,-1968.558961,0.00032877,7]
[424761574,1781131861000,-1968.558961,0.00032877,7]
[424761565,1781131861000,-781.550906,0.00032877,7]
[424761573,1781131861000,-1968.558961,0.00032877,7]
[424761569,1781131861000,-781.550906,0.00032877,7]
[424761572,1781131861000,-1968.558961,0.00032877,7]
[424761568,1781131861000,-781.550906,0.00032877,7]
[424761567,1781131861000,-781.550906,0.00032877,7]
[424761587,1781131861000,-151.0,0.00032877,7]
[424761577,1781131861000,-934.909735,0.00032877,7]
[424761570,1781131861000,-781.550906,0.00032877,7]
[424761612,1781131862000,-878.39699544,0.00027397,10]
[424761609,1781131862000,-279.27153168,0.00032877,7]
[424761611,1781131862000,-884.40800456,0.00018924,2]
[424761610,1781131862000,-329.59199544,0.00018924,2]
[424761614,1781131862000,-161.60300456,0.00027397,10]
[424761613,1781131862000,-1214.0,0.00021924,2]
[424761615,1781131862000,-19537.77462588,0.00027397,10]
[424761616,1781131862000,-5683.87580364,0.00027397,10]
[424761622,1781132252000,322.62401572,0.0001,2]
[424761623,1781132252000,150.79568662,0.0001,2]
[424761621,1781132252000,178.46295331,0.0001,2]
[424761624,1781132354000,200.38,9.848e-05,2]
[424761626,1781132607000,431.51306045,9.5e-05,2]
[424761625,1781132607000,442.0669431,9.5e-05,2]
[424761627,1781132656000,150.0,0.00021,120]
[424761628,1781132676000,150.0,9.821e-05,2]
[424761629,1781132705000,200.0,0.00021,120]
[424761630,1781132814000,-466.20308781,0.00010048,2]
[424761642,1781133032000,-150.0,0.00010299,2]
[424761651,1781133032000,-1932.22,0.00010855,2]
[424761648,1781133032000,-103939.35442192,0.000103,2]
[424761647,1781133032000,-1462.80465994,0.000103,2]
[424761646,1781133032000,-1774.53483621,0.000103,2]
[424761644,1781133032000,-20455.00761489,0.000103,2]
[424761645,1781133032000,-5169.46849591,0.000103,2]
[424761643,1781133032000,-250.0,0.00010299,2]
[424761634,1781133032000,-499.50294632,0.00010023,2]
[424761638,1781133032000,-243.96069853,0.00010073,2]
[424761641,1781133032000,-357.4634596,0.00010254,2]
[424761637,1781133032000,-6.03930147,0.00010073,2]
[424761635,1781133032000,-1849.66319346,0.00010023,2]
[424761636,1781133032000,-505.95954853,0.00010023,2]
[424761649,1781133032000,-73523.85701221,0.000103,2]
[424761633,1781133032000,-397.84647269,0.00010023,2]
[424761639,1781133032000,-500.0,0.00010073,2]
[424761656,1781133032000,-1014.36,0.00011012,2]
[424761640,1781133032000,-364.2486942,0.000102,2]
[424761652,1781133032000,-2000.0,0.00010912,2]
[424761657,1781133032000,-250.0,0.00011053,2]
[424761685,1781133032000,-1160.87387984,0.00012224,2]
[424761683,1781133032000,-695.49293192,0.00012224,2]
[424761676,1781133032000,-562.06215933,0.00012029,2]
[424761673,1781133032000,-1932.22,0.0001194,2]
[424761671,1781133032000,-153.77,0.00011763,2]
[424761678,1781133032000,-27614.31435976,0.00012219,2]
[424761669,1781133032000,-1932.22,0.00011669,2]
[424761666,1781133032000,-1932.22,0.00011397,2]
[424761680,1781133032000,-3188.43696188,0.00012224,2]
[424761664,1781133032000,-255.0,0.00011319,2]
[424761662,1781133032000,-1932.22,0.00011126,2]
[424761660,1781133032000,-500.0,0.00011098,2]
[424761659,1781133032000,-153.77,0.00011071,2]
[424761658,1781133032000,-500.0,0.00011053,2]
[424761655,1781133032000,-150.0,0.00010959,2]
[424761650,1781133032000,-858.97,0.00010824,2]
[424761654,1781133032000,-29999.99,0.00010912,2]
[424761789,1781133039000,-311.29771886,0.00012391,2]
[424761795,1781133039000,-562.06215933,0.00012445,2]
[424761797,1781133039000,-153.77,0.00012455,2]
[424761799,1781133039000,-562.06215933,0.00012495,2]
[424761801,1781133039000,-311.93524405,0.000125,2]
[424761803,1781133039000,-500.0,0.00012516,2]
[424761818,1781133039000,-562.06215933,0.00012654,2]
[424761814,1781133039000,-12908.10774262,0.00012606,2]
[424761819,1781133039000,-311.29771886,0.0001267,2]
[424761805,1781133039000,-27614.3143597,0.00012517,2]
[424761809,1781133039000,-311.29771886,0.00012549,2]
[424761807,1781133039000,-562.06215933,0.00012539,2]
[424761791,1781133039000,-166.66,0.00012428,2]
[424761816,1781133039000,-562.06215933,0.00012618,2]
[424761793,1781133039000,-433.0,0.00012441,2]
[424761766,1781133039000,-35594.98203514,0.000123,2]
[424761782,1781133039000,-215.92376884,0.0001235,2]
[424761821,1781133039000,-562.06215933,0.00012687,2]
[424761754,1781133039000,-1005.87528126,0.00012224,2]
[424761770,1781133039000,-229.0,0.00012324,2]
[424761768,1781133039000,-562.06215933,0.00012324,2]
[424761757,1781133039000,-708.38683977,0.00012224,2]
[424761772,1781133039000,-221.0,0.00012324,2]
[424761787,1781133039000,-562.06215933,0.0001239,2]
[424761759,1781133039000,-6149.04184799,0.00012224,2]
[424761763,1781133039000,-2000.0,0.00012277,2]
[424761776,1781133039000,-226.0,0.00012324,2]
[424761774,1781133039000,-223.0,0.00012324,2]
[424761778,1781133039000,-225.0,0.00012324,2]
[424761780,1781133039000,-191.46,0.00012329,2]
[424761784,1781133039000,-1014.36,0.00012389,2]
[424761761,1781133039000,-562.06215933,0.00012237,2]
[424761820,1781133039000,-500.0,0.0001267,2]
[424761811,1781133039000,-562.06215933,0.0001258,2]
[424761828,1781133039000,-311.29771886,0.00012772,2]
[424761866,1781133039000,-311.29771886,0.00013018,2]
[424761869,1781133039000,-562.06215933,0.00013027,2]
[424761879,1781133039000,-2035.47,0.00013082,2]
[424761881,1781133039000,-311.29771886,0.00013088,2]
[424761883,1781133039000,-562.06215933,0.00013091,2]
[424761871,1781133039000,-562.06215933,0.00013049,2]
[424761864,1781133039000,-562.06215933,0.00013005,2]
[424761873,1781133039000,-562.06215933,0.0001307,2]
[424761877,1781133039000,-1092.33,0.00013082,2]
[424761885,1781133039000,-562.06215933,0.00013111,2]
[424761888,1781133039000,-27614.3143597,0.00013113,2]
[424761894,1781133039000,-225.628297,0.00013142,2]
[424761892,1781133039000,-178.623215,0.00013142,2]
[424761825,1781133039000,-562.06215933,0.0001272,2]
[424761875,1781133039000,-150.0,0.00013082,2]
[424761862,1781133039000,-562.06215933,0.00012983,2]
[424761890,1781133039000,-562.06215933,0.00013131,2]
[424761853,1781133039000,-500.0,0.00012944,2]
[424761856,1781133039000,-175.0,0.00012944,2]
[424761826,1781133039000,-562.06215933,0.0001275,2]
[424761832,1781133039000,-562.06215933,0.00012808,2]
[424761838,1781133039000,-562.06215933,0.00012862,2]
[424761836,1781133039000,-562.06215933,0.00012835,2]
[424761834,1781133039000,-27614.3143597,0.00012815,2]
[424761823,1781133039000,-166.66,0.0001269,2]
[424761849,1781133039000,-562.06215933,0.00012936,2]
[424761858,1781133039000,-166.66,0.00012951,2]
[424761842,1781133039000,-311.29771886,0.00012862,2]
[424761860,1781133039000,-562.06215933,0.0001296,2]
[424761830,1781133039000,-562.06215933,0.0001278,2]
[424761851,1781133039000,-311.29771886,0.00012943,2]
[424761845,1781133039000,-562.06215933,0.00012887,2]
[424761847,1781133039000,-562.06215933,0.00012912,2]
[424761971,1781133040000,-241.51080965,0.00013563,2]
[424761955,1781133040000,-150.0,0.00013515,2]
[424761957,1781133040000,-241.51080965,0.00013518,2]
[424761967,1781133040000,-150.0,0.00013543,2]
[424761963,1781133040000,-241.51080965,0.00013533,2]
[424761964,1781133040000,-150.0,0.00013533,2]
[424761959,1781133040000,-150.0,0.00013527,2]
[424761961,1781133040000,-150.0,0.00013527,2]
[424761973,1781133040000,-150.0,0.00013567,2]
[424761975,1781133040000,-150.0,0.00013567,2]
[424761953,1781133040000,-241.51080965,0.00013503,2]
[424761969,1781133040000,-241.51080965,0.00013548,2]
[424761988,1781133040000,-4000.0,0.000136,2]
[424761982,1781133040000,-150.0,0.00013578,2]
[424761977,1781133040000,-150.0,0.00013571,2]
[424761984,1781133040000,-241.51080965,0.00013594,2]
[424761986,1781133040000,-150.0,0.00013599,2]
[424761992,1781133040000,-150.0,0.00013606,2]
[424761994,1781133040000,-500.0,0.00013608,2]
[424761990,1781133040000,-150.0,0.00013606,2]
[424761996,1781133040000,-241.51080965,0.00013609,2]
[424761999,1781133040000,-150.0,0.00013613,2]
[424762001,1781133040000,-241.51080965,0.00013624,2]
[424762005,1781133040000,-150.0,0.00013626,2]
[424761950,1781133040000,-1000.0,0.000135,2]
[424761980,1781133040000,-241.51080965,0.00013578,2]
[424761946,1781133040000,-150.0,0.00013488,2]
[424761919,1781133040000,-562.06215933,0.00013278,2]
[424761940,1781133040000,-150.0,0.00013488,2]
[424761900,1781133040000,-562.06215933,0.0001315,2]
[424762008,1781133040000,-241.51080965,0.00013639,2]
[424761898,1781133040000,-153.77,0.00013146,2]
[424761896,1781133040000,-234.349261,0.00013142,2]
[424761904,1781133040000,-562.06215933,0.00013169,2]
[424761907,1781133040000,-562.06215933,0.00013207,2]
[424761906,1781133040000,-562.06215933,0.00013188,2]
[424761909,1781133040000,-311.29771886,0.00013215,2]
[424761908,1781133040000,-166.66,0.00013213,2]
[424761911,1781133040000,-562.06215933,0.00013225,2]
[424761924,1781133040000,-562.06215925,0.00013295,2]
[424761926,1781133040000,-250.0,0.0001331,2]
[424761948,1781133040000,-150.0,0.00013488,2]
[424761913,1781133040000,-562.06215933,0.00013243,2]
[424761921,1781133040000,-311.29771887,0.00013278,2]
[424761915,1781133040000,-562.06215933,0.00013261,2]
[424761930,1781133040000,-166.66,0.00013475,2]
[424761932,1781133040000,-150.0,0.00013488,2]
[424761928,1781133040000,-27614.3143597,0.00013411,2]
[424761944,1781133040000,-203.80794025,0.00013488,2]